fUSD/lending_fUSD_20250219
["ID","MTS","AMOUNT","RATE_DAILY","PERIOD"]
[353648349,1739981449839,-500.0,0.00013262,2]
[353648350,1739981449848,-415.85060618,0.00013262,2]
[353648351,1739981449858,-500.0,0.00013262,2]
[353648352,1739981449867,-151.0,0.00013262,2]
[353648353,1739981449877,-151.0,0.00013262,2]
[353648354,1739981449887,-500.0,0.00013262,2]
[353648355,1739981449897,-500.0,0.00013262,2]
[353648356,1739981449906,-372.87309936,0.00013262,2]
[353648357,1739981449916,-500.0,0.00013262,2]
[353648358,1739981449926,-500.0,0.00013262,2]
[353648359,1739981449936,-529.82658651,0.00013262,2]
[353648360,1739981449946,-500.38925308,0.00013262,2]
[353648361,1739981449956,-500.0,0.00013262,2]
[353648362,1739981449965,-500.0,0.00013262,2]
[353648363,1739981449975,-500.0,0.00013262,2]
[353648364,1739981449985,-500.0,0.00013262,2]
[353648365,1739981449995,-500.0,0.00013262,2]
[353648366,1739981450005,-1535.79,0.00013262,2]
[353648367,1739981450015,-1449.28,0.00013262,2]
[353648368,1739981450025,-500.0,0.00013262,2]
[353648369,1739981450035,-500.0,0.00013262,2]
[353648370,1739981450045,-689.66,0.00013262,2]
[353648371,1739981450056,-626.67,0.00013262,2]
[353648372,1739981450067,-500.0,0.00013262,2]
[353648373,1739981450078,-500.0,0.00013262,2]
[353648374,1739981450089,-500.0,0.00013262,2]
[353648375,1739981450099,-892.5,0.00013262,2]
[353648376,1739981450108,-635.4,0.00013262,2]
[353648377,1739981450119,-1020.58,0.00013262,2]
[353648378,1739981450129,-500.0,0.00013262,2]
[353648379,1739981450138,-1376.01,0.00013262,2]
[353648380,1739981450147,-1010.23,0.00013262,2]
[353648381,1739981450157,-151.0,0.00013262,2]
[353648382,1739981450167,-626.49,0.00013262,2]
[353648383,1739981450178,-6695.260811,0.00013262,2]
[353648384,1739981450188,-500.0,0.00013262,2]
[353648385,1739981450198,-1631.89,0.00013262,2]
[353648386,1739981450209,-1015.89,0.00013262,2]
[353648387,1739981450223,-588.46213113,0.00013262,2]
[353648388,1739981450232,-1131.8,0.00013262,2]
[353648389,1739981450242,-500.0,0.00013262,2]
[353648390,1739981450252,-1756.52,0.00013262,2]
[353648391,1739981450262,-871.64,0.00013262,2]
[353648392,1739981450272,-1783.34,0.00013262,2]
[353648393,1739981450282,-1957.66,0.00013262,2]
[353648394,1739981450292,-151.0,0.00013262,2]
[353648395,1739981450302,-2131.64,0.00013262,2]
[353648396,1739981450313,-151.0,0.00013262,2]
[353648397,1739981450323,-811.33,0.00013262,2]
[353648398,1739981450333,-1102.02,0.00013262,2]
[353648399,1739981450343,-172.272058,0.00013262,2]
[353648400,1739981450352,-172.272058,0.00013262,2]
[353648401,1739981450362,-533.790272,0.00013262,2]
[353648402,1739981450371,-646.37,0.00013262,2]
[353648403,1739981450381,-151.0,0.00013262,2]
[353648404,1739981450391,-2003.49,0.00013262,2]
[353648405,1739981450401,-1585.53,0.00013262,2]
[353648406,1739981450411,-2113.06,0.00013262,2]
[353648407,1739981450420,-313.669237,0.00013262,2]
[353648408,1739981450430,-313.669237,0.00013262,2]
[353648409,1739981450440,-864.26,0.00013262,2]
[353648410,1739981450450,-781.560198,0.00013262,2]
[353648411,1739981450460,-1784.94,0.00013262,2]
[353648412,1739981450469,-781.560198,0.00013262,2]
[353648413,1739981450479,-802.26,0.00013262,2]
[353648414,1739981450489,-674.84,0.00013262,2]
[353648415,1739981450499,-1042.13,0.00013262,2]
[353648416,1739981450509,-500.0,0.00013262,2]
[353648417,1739981450519,-2918.0,0.00013262,2]
[353648418,1739981450529,-151.0,0.00013262,2]
[353648419,1739981450539,-500.0,0.00013262,2]
[353648420,1739981450548,-151.0,0.00013262,2]
[353648421,1739981450558,-500.0,0.00013262,2]
[353648422,1739981450568,-500.0,0.00013262,2]
[353648423,1739981450578,-500.0,0.00013262,2]
[353648424,1739981450588,-500.0,0.00013262,2]
[353648425,1739981450597,-803.91,0.00013262,2]
[353648426,1739981450607,-151.0,0.00013262,2]
[353648427,1739981450618,-500.0,0.00013262,2]
[353648428,1739981450628,-822.2,0.00013262,2]
[353648429,1739981450638,-151.0,0.00013262,2]
[353648430,1739981450648,-500.0,0.00013262,2]
[353648431,1739981450658,-168.186444,0.00013262,2]
[353648432,1739981450667,-1819.96,0.00013262,2]
[353648433,1739981450678,-168.186444,0.00013262,2]
[353648434,1739981450688,-1721.94,0.00013262,2]
[353648435,1739981450699,-151.0,0.00013262,2]
[353648436,1739981450709,-151.0,0.00013262,2]
[353648437,1739981450719,-151.0,0.00013262,2]
[353648438,1739981450730,-151.0,0.00013262,2]
[353648439,1739981450741,-151.0,0.00013262,2]
[353648440,1739981450752,-151.0,0.00013262,2]
[353648441,1739981450763,-169.807755,0.00013262,2]
[353648442,1739981450773,-169.807755,0.00013262,2]
[353648443,1739981450782,-198.208733,0.00013262,2]
[353648444,1739981450792,-198.208733,0.00013262,2]
[353648445,1739981450801,-151.0,0.00013263,2]
[353648446,1739981450811,-151.0,0.00013263,2]
[353648447,1739981450821,-348.519299,0.00013263,2]
[353648448,1739981450831,-348.519299,0.00013263,2]
[353648449,1739981450841,-500.0,0.00013263,2]
[353648450,1739981450851,-348.519299,0.00013263,2]
[353648451,1739981450861,-348.519299,0.00013263,2]
[353648452,1739981450871,-151.0,0.00013263,2]
[353648453,1739981450881,-151.0,0.00013263,2]
[353648454,1739981450891,-151.0,0.00013263,2]
[353648455,1739981450901,-200.687746,0.00013263,2]
[353648456,1739981450911,-151.0,0.00013263,2]
[353648457,1739981450922,-151.0,0.00013263,2]
[353648458,1739981450932,-157.1395,0.00013263,2]
[353648459,1739981450942,-824.51,0.00013263,2]
[353648460,1739981450951,-500.0,0.00013263,2]
[353648461,1739981450961,-500.0,0.00013263,2]
[353648462,1739981450971,-500.0,0.00013263,2]
[353648463,1739981450980,-559.16,0.00013263,2]
[353648464,1739981450990,-500.0,0.00013263,2]
[353648465,1739981451000,-505.94377421,0.00013263,2]
[353648466,1739981451009,-500.0,0.00013263,2]
[353648467,1739981451019,-616.83,0.00013263,2]
[353648468,1739981451029,-444.84804732,0.00013263,2]
[353648469,1739981451039,-243.90381176,0.00013263,2]
[353648470,1739981451049,-500.0,0.00013263,2]
[353648471,1739981451059,-500.0,0.00013263,2]
[353648472,1739981451081,-500.0,0.00013263,2]
[353648473,1739981451090,-500.0,0.00013263,2]
[353648474,1739981451100,-5000.0,0.00013263,2]
[353648475,1739981451110,-856.21,0.00013263,2]
[353648476,1739981451121,-500.0,0.00013263,2]
[353648477,1739981451130,-500.0,0.00013263,2]
[353648478,1739981451140,-500.0,0.00013263,2]
[353648479,1739981451153,-509.09,0.00013263,2]
[353648480,1739981451163,-500.0,0.00013263,2]
[353648481,1739981451173,-820.84,0.00013263,2]
[353648482,1739981451183,-500.0,0.00013263,2]
[353648483,1739981451193,-501.74194259,0.00013263,2]
[353648484,1739981451203,-500.0,0.00013263,2]
[353648485,1739981451212,-500.0,0.00013263,2]
[353648486,1739981451227,-500.0,0.00013263,2]
[353648487,1739981451237,-501.07471443,0.00013263,2]
[353648488,1739981451247,-500.0,0.00013263,2]
[353648489,1739981451257,-500.0,0.00013263,2]
[353648490,1739981451266,-577.31,0.00013263,2]
[353648491,1739981451276,-500.0,0.00013263,2]
[353648492,1739981451286,-554.36,0.00013263,2]
[353648493,1739981451298,-500.0,0.00013263,2]
[353648494,1739981451308,-500.0,0.00013263,2]
[353648495,1739981451318,-923.34,0.00013263,2]
[353648496,1739981451328,-500.0,0.00013263,2]
[353648497,1739981451339,-500.0,0.00013263,2]
[353648498,1739981451348,-500.0,0.00013263,2]
[353648499,1739981451358,-500.0,0.00013263,2]
[353648500,1739981451367,-506.11978915,0.00013263,2]
[353648501,1739981451377,-500.0,0.00013263,2]
[353648502,1739981451386,-500.0,0.00013263,2]
[353648503,1739981451396,-500.0,0.00013263,2]
[353648504,1739981451406,-641.57,0.00013263,2]
[353648505,1739981451416,-500.40045483,0.00013263,2]
[353648506,1739981451426,-823.53,0.00013263,2]
[353648507,1739981451435,-500.0,0.00013263,2]
[353648508,1739981451445,-500.0,0.00013263,2]
[353648509,1739981451455,-515.56402495,0.00013263,2]
[353648510,1739981451465,-209.850624,0.00013263,2]
[353648511,1739981451474,-209.850624,0.00013263,2]
[353648512,1739981451484,-216.497913,0.00013263,2]
[353648513,1739981451494,-216.497913,0.00013263,2]
[353648514,1739981451504,-151.0,0.00013263,2]
[353648515,1739981451514,-164.41053,0.00013263,2]
[353648516,1739981451524,-172.272058,0.00013263,2]
[353648517,1739981451534,-172.272058,0.00013263,2]
[353648518,1739981451543,-313.669237,0.00013263,2]
[353648519,1739981451553,-313.669237,0.00013263,2]
[353648520,1739981451576,-781.560198,0.00013263,2]
[353648521,1739981451587,-781.560198,0.00013263,2]
[353648522,1739981451597,-2918.0,0.00013263,2]
[353648523,1739981451606,-151.0,0.00013263,2]
[353648524,1739981451615,-151.0,0.00013263,2]
[353648525,1739981451625,-151.0,0.00013263,2]
[353648526,1739981451635,-152.495933,0.00013263,2]
[353648527,1739981451645,-1819.96,0.00013263,2]
[353648528,1739981451654,-151.0,0.00013263,2]
[353648529,1739981451664,-157.618339,0.00013263,2]
[353648530,1739981451674,-169.807755,0.00013263,2]
[353648531,1739981451684,-169.807755,0.00013263,2]
[353648532,1739981451715,-502.76,0.00013263,2]
[353648533,1739981451725,-151.0,0.00013264,2]
[353648534,1739981451821,-348.519299,0.00013264,2]
[353648535,1739981451831,-348.519299,0.00013264,2]
[353648536,1739981451841,-151.0,0.00013264,2]
[353648537,1739981451850,-6695.260811,0.00013264,2]
[353648538,1739981451859,-151.0,0.00013264,2]
[353648539,1739981451869,-6695.260811,0.00013264,2]
[353648540,1739981451878,-674.84,0.00013264,2]
[353648541,1739981451887,-151.0,0.00013265,2]
[353648542,1739981451897,-151.0,0.00013265,2]
[353648543,1739981451906,-151.0,0.00013265,2]
[353648544,1739981451916,-151.0,0.00013265,2]
[353648545,1739981451925,-151.0,0.00013265,2]
[353648546,1739981451935,-151.0,0.00013265,2]
[353648547,1739981451945,-151.0,0.00013265,2]
[353648548,1739981451954,-151.0,0.00013265,2]
[353648549,1739981451967,-151.0,0.00013265,2]
[353648550,1739981451976,-151.0,0.00013265,2]
[353648551,1739981451984,-151.0,0.00013265,2]
[353648552,1739981451991,-151.0,0.00013265,2]
[353648553,1739981451998,-151.0,0.00013265,2]
[353648554,1739981452005,-151.0,0.00013265,2]
[353648555,1739981452013,-151.0,0.00013265,2]
[353648556,1739981452022,-151.0,0.00013265,2]
[353648557,1739981452031,-151.0,0.00013265,2]
[353648558,1739981452040,-151.0,0.00013265,2]
[353648559,1739981452049,-151.0,0.00013265,2]
[353648560,1739981452059,-151.0,0.00013265,2]
[353648561,1739981452076,-151.0,0.00013265,2]
[353648562,1739981452085,-151.0,0.00013265,2]
[353648563,1739981452095,-151.0,0.00013265,2]
[353648564,1739981452104,-151.0,0.00013265,2]
[353648565,1739981452114,-151.0,0.00013265,2]
[353648566,1739981452123,-151.0,0.00013265,2]
[353648567,1739981452132,-151.0,0.00013265,2]
[353648568,1739981452141,-151.0,0.00013265,2]
[353648569,1739981452150,-151.0,0.00013265,2]
[353648570,1739981452159,-151.0,0.00013265,2]
[353648571,1739981452168,-151.0,0.00013265,2]
[353648572,1739981452178,-151.0,0.00013265,2]
[353648573,1739981452187,-151.0,0.00013265,2]
[353648574,1739981452196,-151.0,0.00013265,2]
[353648575,1739981452205,-151.0,0.00013265,2]
[353648576,1739981452215,-151.0,0.00013265,2]
[353648577,1739981452228,-151.0,0.00013265,2]
[353648578,1739981452237,-151.0,0.00013265,2]
[353648579,1739981452246,-151.0,0.00013265,2]
[353648580,1739981452255,-151.0,0.00013265,2]
[353648581,1739981452265,-151.0,0.00013265,2]
[353648582,1739981452274,-151.0,0.00013265,2]
[353648583,1739981452283,-151.0,0.00013265,2]
[353648584,1739981452292,-151.0,0.00013265,2]
[353648585,1739981452302,-151.0,0.00013265,2]
[353648586,1739981452311,-151.0,0.00013265,2]
[353648587,1739981452325,-151.0,0.00013265,2]
[353648588,1739981452335,-151.0,0.00013265,2]
[353648589,1739981452344,-151.0,0.00013265,2]
[353648590,1739981452353,-151.0,0.00013265,2]
[353648591,1739981452362,-151.0,0.00013265,2]
[353648592,1739981452371,-151.0,0.00013265,2]
[353648593,1739981452381,-151.0,0.00013265,2]
[353648594,1739981452390,-151.0,0.00013265,2]
[353648595,1739981452399,-151.0,0.00013265,2]
[353648596,1739981452409,-151.0,0.00013265,2]
[353648597,1739981452421,-151.0,0.00013265,2]
[353648598,1739981452431,-151.0,0.00013265,2]
[353648599,1739981452440,-151.0,0.00013265,2]
[353648600,1739981452449,-151.0,0.00013265,2]
[353648601,1739981452459,-151.0,0.00013265,2]
[353648602,1739981452468,-151.0,0.00013265,2]
[353648603,1739981452477,-294.126128,0.00013265,2]
[353648604,1739981452487,-168.186444,0.00013265,2]
[353648605,1739981452496,-168.186444,0.00013265,2]
[353648606,1739981452505,-151.0,0.00013265,2]
[353648607,1739981452515,-151.0,0.00013265,2]
[353648608,1739981452524,-151.0,0.00013265,2]
[353648609,1739981452533,-151.0,0.00013265,2]
[353648610,1739981452543,-198.208733,0.00013265,2]
[353648611,1739981452552,-198.208733,0.00013265,2]
[353648612,1739981452562,-151.0,0.00013267,3]
[353648613,1739981452574,-502.0,0.00013267,3]
[353648614,1739981452584,-151.0,0.00013267,2]
[353648615,1739981452593,-200.0,0.00013267,2]
[353648616,1739981452603,-151.0,0.00013267,2]
[353648617,1739981452612,-151.0,0.00013267,2]
[353648618,1739981452622,-298.197743,0.00013267,2]
[353648619,1739981452631,-298.197743,0.00013267,2]
[353648620,1739981452641,-200.0,0.00013267,2]
[353648621,1739981452650,-151.0,0.00013267,2]
[353648622,1739981452659,-1567.205065,0.00013267,2]
[353648623,1739981452668,-200.0,0.00013267,2]
[353648624,1739981452677,-151.0,0.00013267,2]
[353648625,1739981452687,-3333.3318,0.00013267,2]
[353648626,1739981452696,-6974.50663371,0.00013267,2]
[353648627,1739981452705,-150.0,0.00013269,2]
[353648628,1739981452714,-9249.59478979,0.00013278,2]
[353648629,1739981452724,-3123.56,0.00013281,2]
[353648630,1739981452733,-2507.0,0.00013281,2]
[353648631,1739981452742,-2530.66,0.00013281,2]
[353648632,1739981452752,-2794.35,0.00013281,2]
[353648633,1739981452762,-3189.29,0.00013281,2]
[353648634,1739981452772,-643.31,0.00013281,2]
[353648635,1739981452782,-1712.35,0.00013281,2]
[353648636,1739981452791,-500.0,0.00013281,2]
[353648637,1739981452801,-1440.08,0.00013281,2]
[353648638,1739981452811,-3073.73,0.00013281,2]
[353648639,1739981452821,-500.0,0.00013281,2]
[353648640,1739981452831,-749.49,0.00013281,2]
[353648641,1739981452840,-1664.91,0.00013281,2]
[353648642,1739981452850,-1453.44,0.00013281,2]
[353648643,1739981452860,-1783.85,0.00013281,2]
[353648644,1739981452869,-3722.51,0.00013281,2]
[353648645,1739981452879,-500.0,0.00013281,2]
[353648646,1739981452888,-151.0,0.000133,2]
[353648647,1739981452897,-150.0,0.00013302,2]
[353648648,1739981452906,-500.0,0.00013303,2]
[353648649,1739981452916,-2918.0,0.00013303,2]
[353648650,1739981452925,-348.519299,0.00013304,2]
[353648651,1739981452934,-348.519299,0.00013304,2]
[353648652,1739981452943,-157.593,0.00013304,2]
[353648653,1739981452953,-6974.50663371,0.00013306,2]
[353648654,1739981452962,-151.0,0.00013309,2]
[353648655,1739981452972,-313.669237,0.00013309,2]
[353648656,1739981452982,-313.669237,0.00013309,2]
[353648657,1739981452991,-219.18838361,0.0001331,2]
[353648658,1739981453000,-151.0,0.00013311,2]
[353648659,1739981453009,-151.0,0.00013311,2]
[353648660,1739981453019,-151.0,0.00013311,2]
[353648661,1739981453028,-151.303593,0.00013311,2]
[353648662,1739981453037,-151.0,0.00013311,2]
[353648663,1739981453047,-674.84,0.00013311,2]
[353648664,1739981453056,-1819.96,0.00013311,2]
[353648665,1739981453067,-151.0,0.00013312,2]
[353648666,1739981453076,-151.0,0.00013312,2]
[353648667,1739981453087,-156.409962,0.00013312,2]
[353648668,1739981453096,-151.0,0.00013312,2]
[353648669,1739981453105,-151.0,0.00013312,2]
[353648670,1739981453115,-151.0,0.00013312,2]
[353648671,1739981453125,-151.0,0.00013312,2]
[353648672,1739981453134,-688.424009,0.00013312,2]
[353648673,1739981453144,-688.424009,0.00013312,2]
[353648674,1739981453153,-688.424009,0.00013312,2]
[353648675,1739981453162,-688.424009,0.00013312,2]
[353648676,1739981453173,-151.0,0.00013312,2]
[353648677,1739981453182,-151.0,0.00013312,2]
[353648678,1739981453191,-151.0,0.00013312,2]
[353648679,1739981453201,-151.0,0.00013312,2]
[353648680,1739981453211,-151.0,0.00013312,2]
[353648681,1739981453223,-151.0,0.00013312,2]
[353648682,1739981453233,-178.023001,0.00013312,2]
[353648683,1739981453242,-151.0,0.00013312,2]
[353648684,1739981453251,-485.442333,0.00013312,2]
[353648685,1739981453263,-485.442333,0.00013312,2]
[353648686,1739981453272,-151.0,0.00013312,2]
[353648687,1739981453283,-151.0,0.00013312,2]
[353648688,1739981453294,-151.0,0.00013312,2]
[353648689,1739981453304,-151.0,0.00013312,2]
[353648690,1739981453315,-500.0,0.00013312,2]
[353648691,1739981453324,-151.0,0.00013312,2]
[353648692,1739981453333,-284.472409,0.00013312,2]
[353648693,1739981453343,-209.850624,0.00013312,2]
[353648694,1739981453352,-209.850624,0.00013312,2]
[353648695,1739981453362,-216.497913,0.00013312,2]
[353648696,1739981453371,-216.497913,0.00013312,2]
[353648697,1739981453379,-2918.0,0.00013312,2]
[353648698,1739981453388,-169.807755,0.00013312,2]
[353648699,1739981453398,-169.807755,0.00013312,2]
[353648700,1739981453407,-151.0,0.00013313,2]
[353648701,1739981453415,-151.0,0.00013313,2]
[353648702,1739981453424,-151.0,0.00013313,2]
[353648703,1739981453434,-152.015657,0.00013313,2]
[353648704,1739981453443,-151.0,0.00013313,2]
[353648705,1739981453452,-151.0,0.00013313,2]
[353648706,1739981453463,-151.0,0.00013313,2]
[353648707,1739981453473,-151.0,0.00013313,2]
[353648708,1739981453482,-151.0,0.00013313,2]
[353648709,1739981453491,-151.0,0.00013313,2]
[353648710,1739981453501,-151.0,0.00013313,2]
[353648711,1739981453511,-151.0,0.00013313,2]
[353648712,1739981453520,-151.807604,0.00013313,2]
[353648713,1739981453529,-151.0,0.00013313,2]
[353648714,1739981453539,-151.0,0.00013313,2]
[353648715,1739981453548,-688.424009,0.00013313,2]
[353648716,1739981453558,-688.424009,0.00013313,2]
[353648717,1739981453568,-688.424009,0.00013313,2]
[353648718,1739981453578,-688.424009,0.00013313,2]
[353648719,1739981453588,-151.0,0.00013313,2]
[353648720,1739981453598,-151.0,0.00013313,2]
[353648721,1739981453607,-294.834525,0.00013313,2]
[353648722,1739981453617,-151.0,0.00013313,2]
[353648723,1739981453628,-151.0,0.00013313,2]
[353648724,1739981453638,-250.177577,0.00013313,2]
[353648725,1739981453652,-151.0,0.00013313,2]
[353648726,1739981453662,-485.442333,0.00013313,2]
[353648727,1739981453672,-485.442333,0.00013313,2]
[353648728,1739981453682,-151.0,0.00013313,2]
[353648729,1739981453691,-151.0,0.00013313,2]
[353648730,1739981453701,-151.0,0.00013313,2]
[353648731,1739981453711,-348.519299,0.00013313,2]
[353648732,1739981453720,-348.519299,0.00013313,2]
[353648733,1739981453730,-151.0,0.00013313,2]
[353648734,1739981453740,-151.0,0.00013313,2]
[353648735,1739981453751,-151.0,0.00013313,2]
[353648736,1739981453761,-298.197743,0.00013313,2]
[353648737,1739981453770,-298.197743,0.00013313,2]
[353648738,1739981453781,-6695.260811,0.00013313,2]
[353648739,1739981453790,-220.959969,0.00013313,2]
[353648740,1739981453800,-151.0,0.00013313,2]
[353648741,1739981453810,-6695.260811,0.00013313,2]
[353648742,1739981453821,-1567.205065,0.00013313,2]
[353648743,1739981453831,-151.0,0.00013313,2]
[353648744,1739981453841,-151.0,0.00013313,2]
[353648745,1739981453851,-151.0,0.00013313,2]
[353648746,1739981453861,-151.0,0.00013313,2]
[353648747,1739981453871,-631.48725845,0.00013315,2]
[353648748,1739981453880,-151.0,0.00013319,2]
[353648749,1739981453890,-151.0,0.00013319,2]
[353648750,1739981453900,-151.0,0.00013319,2]
[353648751,1739981453910,-301.606785,0.00013319,2]
[353648752,1739981453920,-281.0,0.0001332,2]
[353648753,1739981453930,-150.0,0.00013321,2]
[353648754,1739981453940,-9249.59478979,0.00013322,2]
[353648755,1739981453950,-167.53964342,0.0001333,2]
[353648756,1739981453959,-1908.72,0.00013331,2]
[353648757,1739981453969,-1724.21,0.00013331,2]
[353648758,1739981453978,-1183.16,0.00013331,2]
[353648759,1739981453987,-3635.95,0.00013331,2]
[353648760,1739981453997,-508.07,0.00013331,2]
[353648761,1739981454007,-2957.13,0.00013331,2]
[353648762,1739981454017,-1260.75,0.00013331,2]
[353648763,1739981454027,-3370.75,0.00013331,2]
[353648764,1739981454037,-4466.71,0.00013331,2]
[353648765,1739981454047,-2861.46,0.00013331,2]
[353648766,1739981454056,-1037.25,0.00013331,2]
[353648767,1739981454066,-4057.21,0.00013331,2]
[353648768,1739981454076,-500.0,0.00013331,2]
[353648769,1739981454086,-1354.31,0.00013331,2]
[353648770,1739981454096,-1288.25,0.00013331,2]
[353648771,1739981454106,-3219.78,0.00013331,2]
[353648772,1739981454116,-1623297.88633943,0.00013331,2]
[353648773,1739981454126,-500.0,0.00013331,2]
[353648774,1739981454135,-308.739645,0.00013331,2]
[353648775,1739981454145,-151.0,0.00013332,2]
[353648776,1739981454155,-151.0,0.00013332,2]
[353648777,1739981454165,-151.0,0.00013332,2]
[353648778,1739981454175,-151.0,0.00013332,2]
[353648779,1739981454185,-151.0,0.00013332,2]
[353648780,1739981454195,-212.69838752,0.00013332,2]
[353648781,1739981454205,-151.0,0.00013332,2]
[353648782,1739981454216,-151.0,0.00013332,2]
[353648783,1739981454228,-688.424009,0.00013332,2]
[353648784,1739981454237,-688.424009,0.00013332,2]
[353648785,1739981454247,-1678.83,0.00013332,2]
[353648786,1739981454257,-1847.3542,0.00013332,2]
[353648787,1739981454268,-1846.29,0.00013332,2]
[353648788,1739981454277,-1592.48,0.00013332,2]
[353648789,1739981454288,-1773.020173,0.00013332,2]
[353648790,1739981454299,-2705.75,0.00013332,2]
[353648791,1739981454309,-645.6,0.00013332,2]
[353648792,1739981454319,-2407.49,0.00013332,2]
[353648793,1739981454328,-767.18,0.00013332,2]
[353648794,1739981454338,-1005.99,0.00013332,2]
[353648795,1739981454348,-500.0,0.00013332,2]
[353648796,1739981454358,-1902.19,0.00013332,2]
[353648797,1739981454367,-150.0,0.00013332,2]
[353648798,1739981454377,-2400.24,0.00013332,2]
[353648799,1739981454388,-2120.53,0.00013332,2]
[353648800,1739981454397,-2293.3,0.00013332,2]
[353648801,1739981454408,-2929.98,0.00013332,2]
[353648802,1739981454417,-4447.72,0.00013332,2]
[353648803,1739981454427,-1962.14,0.00013332,2]
[353648804,1739981454437,-2210.96,0.00013332,2]
[353648805,1739981454447,-500.0,0.00013332,2]
[353648806,1739981454457,-3551.16,0.00013332,2]
[353648807,1739981454466,-2946.14,0.00013332,2]
[353648808,1739981454477,-2431.17,0.00013332,2]
[353648809,1739981454487,-5965.08,0.00013332,2]
[353648810,1739981454496,-9795.57,0.00013332,2]
[353648811,1739981454506,-500.0,0.00013332,2]
[353648812,1739981454516,-1863.21,0.00013332,2]
[353648813,1739981454527,-3674.44,0.00013332,2]
[353648814,1739981454536,-151.0,0.00013332,2]
[353648815,1739981454546,-1362.54,0.00013332,2]
[353648816,1739981454556,-4172.34,0.00013332,2]
[353648817,1739981454567,-151.0,0.00013332,2]
[353648818,1739981454577,-2438.27,0.00013332,2]
[353648819,1739981454586,-151.0,0.00013332,2]
[353648820,1739981454596,-2658.27,0.00013332,2]
[353648821,1739981454607,-586.28,0.00013332,2]
[353648822,1739981454616,-198.208733,0.00013332,2]
[353648823,1739981454626,-198.208733,0.00013332,2]
[353648824,1739981454636,-2845.19,0.00013332,2]
[353648825,1739981454646,-2996.47,0.00013332,2]
[353648826,1739981454656,-1500.0,0.00013333,2]
[353648827,1739981454666,-300.0,0.00013333,2]
[353648828,1739981454676,-300.0,0.00013333,2]
[353648829,1739981454686,-500.0,0.00013333,2]
[353648830,1739981454696,-500.0,0.00013333,2]
[353648831,1739981454706,-500.0,0.00013333,2]
[353648832,1739981454717,-587.39,0.00013333,2]
[353648833,1739981454727,-500.0,0.00013333,2]
[353648834,1739981454737,-153.55973472,0.00013333,2]
[353648835,1739981454747,-500.0,0.00013333,2]
[353648836,1739981454757,-500.0,0.00013333,2]
[353648837,1739981454767,-500.0,0.00013333,2]
[353648838,1739981454778,-1235.18,0.00013333,2]
[353648839,1739981454787,-500.0,0.00013333,2]
[353648840,1739981454797,-500.0,0.00013333,2]
[353648841,1739981454807,-500.0,0.00013333,2]
[353648842,1739981454817,-515.08,0.00013333,2]
[353648843,1739981454827,-500.0,0.00013333,2]
[353648844,1739981454837,-500.0,0.00013333,2]
[353648845,1739981454848,-500.0,0.00013333,2]
[353648846,1739981454858,-500.0,0.00013333,2]
[353648847,1739981454868,-500.0,0.00013333,2]
[353648848,1739981454878,-500.0,0.00013333,2]